bitfinex/quotes_BTCUSD_20241223
["timestamp","ask_amount","ask_price","bid_price","bid_amount"]
[1734912738277,0.421529,94893.0,94873.0,0.210806]
[1734912738590,0.21078,94886.0,94869.0,0.210817]
[1734912738793,0.00131743,94885.0,94870.0,0.00052735]
[1734912739000,0.001,94872.0,94853.0,0.15]
[1734912739208,0.001,94872.0,94851.0,0.0054685]
[1734912739626,0.210825,94866.0,94851.0,0.0054685]
[1734912739831,0.210812,94871.0,94856.0,0.210845]
[1734912740043,0.001,94872.0,94858.0,0.210841]
[1734912740431,0.210809,94873.0,94858.0,0.210841]
[1734912740873,0.00131762,94872.0,94858.0,0.210841]
[1734912741120,0.00131762,94877.0,94858.0,0.421682]
[1734912741333,0.001,94872.0,94869.0,8.58e-05]
[1734912741702,0.210801,94876.0,94869.0,8.58e-05]
[1734912741913,0.001,94873.0,94869.0,8.58e-05]
[1734912742091,0.00131762,94875.0,94869.0,8.58e-05]
[1734912742092,0.210805,94874.0,94869.0,8.58e-05]
[1734912742270,0.00131762,94873.0,94869.0,8.58e-05]
[1734912742501,0.21081,94872.0,94869.0,8.58e-05]
[1734912742703,0.210814,94870.0,94869.0,8.58e-05]
[1734912743099,0.1013084,94873.0,94869.0,8.58e-05]
[1734912743299,0.00131768,94872.0,94869.0,8.58e-05]
[1734912743494,0.210812,94871.0,94869.0,8.58e-05]
[1734912743746,0.210817,94869.0,94855.0,0.01501478]
[1734912743952,0.00131768,94868.0,94855.0,0.01501478]
[1734912744157,0.210833,94862.0,94855.0,0.01501478]
[1734912744322,0.0829,94860.0,94855.0,0.01501478]
[1734912744522,0.31346623,94859.0,94855.0,0.01501478]
[1734912744723,0.3121484,94859.0,94855.0,0.01501478]
[1734912745008,0.210843,94857.0,94855.0,0.01501478]
[1734912745216,0.10262632,94856.0,94855.0,0.01501478]
[1734912746289,0.12562632,94856.0,94855.0,0.01501478]
[1734912746473,0.10262632,94856.0,94855.0,0.01501478]
[1734912746716,0.21084,94859.0,94855.0,0.01501478]
[1734912746895,0.0013179,94858.0,94855.0,0.01501478]
[1734912747303,0.001,94859.0,94855.0,0.01501478]
[1734912747499,0.210808,94873.0,94856.0,0.210845]
[1734912747655,0.3121164,94873.0,94856.0,0.210845]
[1734912747854,0.00131768,94872.0,94855.0,0.01501478]
[1734912748050,0.00131768,94872.0,94856.0,0.210845]
[1734912748496,0.210812,94871.0,94855.0,0.03350833]
[1734912748704,0.10262608,94870.0,94839.0,0.09889678]
[1734912748904,0.210837,94860.0,94847.0,0.210865]
[1734912749105,0.421639,94868.0,94847.0,0.210865]
[1734912749336,0.10262618,94867.0,94841.0,0.210877]
[1734912749598,0.210851,94854.0,94839.0,0.02065434]
[1734912749843,0.00131788,94853.0,94839.0,0.02065434]
[1734912750177,0.00131788,94853.0,94840.0,0.210881]
[1734912750579,0.00131788,94857.0,94840.0,0.210881]
[1734912751259,0.21216288,94857.0,94841.0,0.210879]
[1734912751580,0.210834,94862.0,94839.0,0.02065434]
[1734912751581,0.210848,94855.0,94839.0,0.02065434]
[1734912751779,0.2997,94866.0,94841.0,0.1013084]
[1734912751780,0.001,94857.0,94841.0,0.1013084]
[1734912751930,0.001,94857.0,94842.0,0.00052797]
[1734912752139,0.00131784,94856.0,94840.0,0.00052818]
[1734912752334,0.00131784,94856.0,94847.0,0.210865]
[1734912752534,0.00231784,94857.0,94847.0,0.210865]
[1734912752878,0.001,94857.0,94841.0,0.210879]
[1734912753058,0.001,94857.0,94843.0,0.210874]
[1734912753214,0.001,94857.0,94842.0,0.00052818]
[1734912753215,0.001,94857.0,94844.0,0.10183658]
[1734912753451,0.001,94857.0,94852.0,0.210853]
[1734912753695,0.21214469,94865.0,94845.0,0.21087]
[1734912753889,0.0817,94866.0,94845.0,0.21087]
[1734912753890,0.210839,94860.0,94845.0,0.21087]
[1734912754097,0.001,94857.0,94845.0,0.21087]
[1734912754267,0.00131782,94859.0,94845.0,0.21087]
[1734912754268,0.00131782,94859.0,94845.0,0.421739]
[1734912754446,0.00131782,94862.0,94845.0,0.421739]
[1734912754651,0.001,94857.0,94845.0,0.210869]
[1734912754887,0.00131782,94860.0,94845.0,0.210869]
[1734912755308,0.001,94857.0,94851.0,0.210856]
[1734912755956,0.001,94857.0,94852.0,0.00052795]
[1734912756163,0.001,94857.0,94856.0,0.210845]
[1734912756382,0.001,94857.0,94856.0,0.3121534]
[1734912756716,0.00131749,94882.0,94856.0,0.3333902]
[1734912756940,0.00131749,94882.0,94857.0,0.1013084]
[1734912757146,0.2108,94877.0,94857.0,0.1013084]
[1734912757350,0.2108,94877.0,94856.0,0.210845]
[1734912757351,0.2109826,94872.0,94856.0,0.210845]
[1734912757550,0.00185556,94871.0,94860.0,0.12812089]
[1734912757751,0.210814,94870.0,94860.0,0.12812089]
[1734912758151,0.00131763,94869.0,94853.0,0.210852]
[1734912758354,0.00053793,94871.0,94853.0,0.210852]
[1734912758517,0.00053793,94871.0,94859.0,0.12812089]
[1734912759115,0.00053793,94871.0,94857.0,0.210843]
[1734912759557,0.00053793,94871.0,94852.0,0.40899931]
[1734912759766,0.195814,94870.0,94853.0,0.21137976]
[1734912759968,0.19713163,94870.0,94853.0,0.210852]
[1734912760140,0.195814,94870.0,94860.0,0.13212089]
[1734912760697,0.195814,94870.0,94860.0,0.12812089]
[1734912760902,0.00153793,94871.0,94860.0,0.12812089]
[1734912761366,0.210819,94868.0,94850.0,0.12812089]
[1734912761559,0.421638,94868.0,94860.0,0.003]
[1734912761896,0.210819,94868.0,94851.0,0.210856]
[1734912762730,0.21213863,94867.0,94851.0,0.210856]
[1734912762943,0.210846,94856.0,94846.0,0.01678171]
[1734912763168,0.21085,94854.0,94841.0,0.09437426]
[1734912763369,0.21084,94859.0,94842.0,0.21140515]
[1734912763578,0.290118,94869.0,94849.0,0.12812089]
[1734912763828,0.10262616,94868.0,94850.0,0.210859]
[1734912764018,0.10262616,94868.0,94860.0,0.210837]
[1734912764019,0.001,94867.0,94860.0,0.210837]
[1734912764465,0.0823,94881.0,94867.0,0.210819]
[1734912764676,0.24465156,94888.0,94869.0,0.210817]
[1734912764887,0.24333407,94888.0,94869.0,0.210817]
[1734912765107,0.09333407,94888.0,94870.0,0.00052746]
[1734912765314,0.0828,94892.0,94869.0,0.210817]
[1734912765445,0.0828,94892.0,94870.0,0.00052724]
[1734912766065,0.210749,94900.0,94870.0,0.10183566]
[1734912766278,0.0803716,94902.0,94870.0,0.55098266]
[1734912766630,0.21075,94900.0,94870.0,0.4322484]
[1734912766787,0.00131724,94899.0,94870.0,0.4322484]
[1734912767416,0.00070953,94871.0,94870.0,0.4322484]
[1734912767854,0.00970953,94871.0,94870.0,0.4322484]
[1734912768753,0.00970953,94871.0,94870.0,1.09124771]
[1734912769200,0.0077737,94871.0,94870.0,0.86030771]
[1734912769419,0.0001716,94902.0,94899.0,0.210749]
[1734912770573,0.0001716,94902.0,94901.0,0.210745]
[1734912770784,0.0001716,94902.0,94901.0,0.3120534]
[1734912771186,0.0011716,94902.0,94901.0,0.53397568]
[1734912771836,0.0021716,94902.0,94901.0,0.53497568]
[1734912772242,0.0001716,94902.0,94901.0,0.53397568]
[1734912772667,0.0001716,94902.0,94901.0,0.43344268]
[1734912773018,0.0001716,94902.0,94901.0,0.94143267]
[1734912773220,0.0001716,94902.0,94901.0,0.87314167]
[1734912773609,0.0011716,94902.0,94901.0,0.86860867]
[1734912773827,0.0011716,94902.0,94901.0,0.45987067]
[1734912774028,0.0001716,94902.0,94901.0,0.55329767]
[1734912774242,0.0001716,94902.0,94901.0,1.22129698]
[1734912774243,0.0011716,94902.0,94901.0,1.22129698]
[1734912774644,0.0803,94949.0,94926.0,0.21069]
[1734912774850,0.00131656,94948.0,94926.0,0.21069]
[1734912775052,0.00033305,94927.0,94926.0,0.21069]
[1734912775481,0.00033305,94927.0,94926.0,0.544429]
[1734912775736,0.00033305,94927.0,94926.0,0.544743]
[1734912775990,0.00033305,94927.0,94926.0,0.507158]
[1734912776204,0.00033305,94927.0,94926.0,0.331231]
[1734912776457,0.00033305,94927.0,94926.0,0.21069]
[1734912776765,0.00033305,94927.0,94923.0,0.210695]
[1734912776968,0.00033305,94927.0,94923.0,0.421391]
[1734912777979,0.00133305,94927.0,94926.0,0.008]
[1734912778231,0.00033305,94927.0,94923.0,0.421391]
[1734912778774,0.00033305,94927.0,94925.0,0.210692]
[1734912778775,0.00133305,94927.0,94925.0,0.210692]
[1734912779018,0.00133305,94927.0,94926.0,0.8097764]
[1734912779252,0.00133305,94927.0,94926.0,0.3513084]
[1734912779773,0.00133305,94927.0,94926.0,0.5681974]
[1734912780439,0.0763,94961.0,94936.0,0.632004]
[1734912780643,0.0763,94961.0,94923.0,0.11714647]
[1734912780644,0.07646235,94961.0,94951.0,0.12812089]
[1734912780845,0.07646235,94961.0,94957.0,0.21062]
[1734912781054,0.00016235,94961.0,94938.0,0.40899931]
[1734912781262,0.21063,94954.0,94940.0,0.12812089]
[1734912781664,0.00131649,94953.0,94940.0,0.12812089]
[1734912781817,0.21063,94953.0,94940.0,0.12812089]
[1734912782024,0.21063,94953.0,94922.0,0.1]
[1734912782025,0.210646,94947.0,94930.0,0.12812089]
[1734912782228,0.00131662,94946.0,94931.0,0.210679]
[1734912782423,0.1804084,94945.0,94930.0,0.12812089]
[1734912782653,0.00131672,94944.0,94930.0,0.12812089]
[1734912782852,0.210654,94942.0,94930.0,0.12812089]
[1734912783097,0.00131672,94941.0,94930.0,0.12812089]
[1734912783392,0.0791,94945.0,94930.0,0.12812089]
[1734912783393,0.00131663,94944.0,94930.0,0.12812089]
[1734912783989,0.210652,94943.0,94940.0,0.004]
[1734912784191,0.210652,94943.0,94930.0,0.12812089]
[1734912784390,0.00131663,94942.0,94930.0,0.12812089]
[1734912785278,0.00131663,94942.0,94940.0,0.001]
[1734912785524,0.421314,94941.0,94930.0,0.12812089]
[1734912785750,0.00131672,94940.0,94930.0,0.12812089]
[1734912785961,0.210661,94939.0,94930.0,0.12912089]
[1734912786116,0.210652,94943.0,94930.0,0.12912089]
[1734912786295,0.210657,94941.0,94930.0,0.12912089]
[1734912786514,0.00131671,94940.0,94930.0,0.12912089]
[1734912786720,0.210661,94939.0,94930.0,0.12912089]
[1734912786916,0.00131671,94938.0,94930.0,0.12912089]
[1734912787127,0.00131671,94938.0,94930.0,0.12812089]
[1734912787329,0.421332,94937.0,94920.0,0.14512949]
[1734912787511,0.421332,94937.0,94920.0,0.0170086]
[1734912787716,0.00131671,94936.0,94921.0,0.210701]
[1734912787918,0.210666,94937.0,94921.0,0.210701]
[1734912790132,0.0791,94945.0,94927.0,0.12812089]
[1734912790303,0.286419,94958.0,94935.0,0.12812089]
[1734912790527,0.421248,94956.0,94935.0,0.12812089]
[1734912790662,0.00131654,94955.0,94935.0,0.12812089]
[1734912791047,0.210628,94954.0,94936.0,0.210668]
[1734912791247,0.00131654,94953.0,94936.0,0.210668]
[1734912791513,0.001,94945.0,94936.0,0.210668]
[1734912791832,0.00131654,94953.0,94936.0,0.210668]
[1734912791833,0.0001714,94937.0,94936.0,0.210668]
[1734912792833,0.0001714,94937.0,94936.0,0.213668]
[1734912793807,0.0001714,94937.0,94936.0,0.1043084]
[1734912794108,0.0001714,94937.0,94936.0,1.0453504]
[1734912794347,0.0001714,94937.0,94936.0,1.45434971]
[1734912794549,0.0001714,94937.0,94936.0,1.01947731]
[1734912794752,0.0001714,94937.0,94936.0,0.40899931]
[1734912794958,0.0001714,94937.0,94936.0,0.62866731]
[1734912794959,0.0011714,94937.0,94936.0,0.62866731]
[1734912795173,0.0011714,94937.0,94936.0,0.41799931]
[1734912795381,0.0001714,94937.0,94936.0,0.40899931]
[1734912795528,0.0081714,94937.0,94936.0,0.40999931]
[1734912795967,0.0001714,94937.0,94936.0,0.40899931]
[1734912796313,0.0011714,94937.0,94936.0,0.41799931]
[1734912797934,0.0011714,94937.0,94936.0,0.009]
[1734912799642,0.0001714,94937.0,94936.0,0.210668]
[1734912800993,0.0011714,94937.0,94936.0,0.219668]
[1734912801397,0.0011714,94937.0,94936.0,0.210668]
[1734912801398,0.0001714,94937.0,94936.0,0.210668]
[1734912801612,0.0011714,94937.0,94936.0,0.5021354]
[1734912801877,0.0011714,94937.0,94936.0,0.3209764]
[1734912802089,0.0001714,94937.0,94936.0,0.3119764]
[1734912802440,0.0011714,94937.0,94936.0,0.4955614]
[1734912802645,0.0001714,94937.0,94936.0,0.5865614]
[1734912803054,0.0011714,94937.0,94936.0,0.5955614]
[1734912803617,0.0011714,94937.0,94936.0,0.7455614]
[1734912803777,0.0011714,94937.0,94936.0,0.8455614]
[1734912803998,0.0011714,94937.0,94936.0,0.77866731]
[1734912804160,0.0001714,94937.0,94936.0,0.61966731]
[1734912804361,0.0001714,94937.0,94935.0,0.01691103]
[1734912804612,0.0081714,94937.0,94936.0,0.001]
[1734912805022,0.0001714,94937.0,94931.0,0.210679]
[1734912805218,0.0011714,94937.0,94936.0,0.009]
[1734912805567,0.0001714,94937.0,94931.0,0.43844305]
[1734912805769,0.0011714,94937.0,94936.0,0.008]
[1734912806178,0.0001714,94937.0,94933.0,0.421348]
[1734912807951,0.0001714,94937.0,94933.0,0.210674]
[1734912808153,0.0011714,94937.0,94936.0,0.008]
[1734912808377,0.0001714,94937.0,94933.0,0.210674]
[1734912808527,0.0001714,94937.0,94933.0,0.219674]
[1734912808727,0.0011714,94937.0,94933.0,0.219674]
[1734912808932,0.0001714,94937.0,94933.0,0.210674]
[1734912809138,0.0011714,94937.0,94933.0,0.429348]
[1734912809545,0.0011714,94937.0,94933.0,0.421348]
[1734912809748,0.0021714,94937.0,94933.0,0.219674]
[1734912810478,0.0021714,94937.0,94933.0,0.009]
[1734912811009,0.00131665,94936.0,94931.0,0.01708505]
[1734912811214,0.286868,94936.0,94926.0,8.56e-05]
[1734912811634,0.286868,94936.0,94933.0,0.008]
[1734912812073,0.286868,94936.0,94926.0,8.56e-05]
[1734912812275,0.210672,94934.0,94926.0,0.01618515]
[1734912812477,0.210677,94932.0,94931.0,0.009]
[1734912812706,0.210672,94934.0,94926.0,8.56e-05]
[1734912812876,0.00131677,94933.0,94926.0,8.56e-05]
[1734912813736,0.00131677,94933.0,94921.0,0.210701]
[1734912814227,0.00131677,94933.0,94920.0,0.01675826]
[1734912814750,0.0001714,94937.0,94932.0,0.210675]
[1734912814955,0.0001714,94937.0,94932.0,0.421352]
[1734912815371,0.0001714,94937.0,94932.0,0.210675]
[1734912815793,0.0001714,94937.0,94932.0,0.421351]
[1734912815996,0.001,94933.0,94932.0,0.421351]
[1734912816218,0.001,94933.0,94932.0,0.210675]
[1734912816845,0.001,94933.0,94932.0,0.32664733]
[1734912817055,0.001,94933.0,94932.0,0.69767433]
[1734912817264,0.001,94933.0,94932.0,0.58422033]
[1734912817469,0.001,94933.0,94932.0,0.73422033]
[1734912817670,0.001,94933.0,94932.0,0.83422033]
[1734912817792,0.001,94933.0,94932.0,0.84122033]
[1734912818003,0.0001714,94937.0,94933.0,0.360672]
[1734912818238,0.0001714,94937.0,94936.0,0.15]
[1734912818443,0.0001714,94937.0,94936.0,0.9021994]
[1734912819502,0.0011714,94937.0,94936.0,0.9111994]
[1734912819826,0.0051314,94962.0,94936.0,0.9111994]
[1734912819827,0.0051314,94962.0,94961.0,0.210612]
[1734912820244,0.00529375,94962.0,94961.0,0.210612]
[1734912820967,0.00529375,94962.0,94961.0,0.529766]
[1734912821179,0.00529375,94962.0,94961.0,0.5765994]
[1734912821378,0.00242354,94962.0,94961.0,1.0069994]
[1734912821581,0.14000111,94991.0,94961.0,1.0069994]
[1734912821582,0.0752716,94997.0,94977.0,0.1]
[1734912821835,0.07581266,94997.0,94978.0,0.22942929]
[1734912822238,0.07581266,94997.0,94993.0,0.21054]
[1734912822756,0.07581266,94997.0,94993.0,0.421081]
[1734912822999,0.00071266,94997.0,94993.0,0.421081]
[1734912823656,0.00071266,94997.0,94993.0,0.368081]
[1734912823918,0.00071266,94997.0,94995.0,0.210537]
[1734912824120,0.00071266,94997.0,94996.0,0.4835654]
[1734912824353,0.00071266,94997.0,94996.0,0.40621071]
[1734912824783,0.00171266,94997.0,94996.0,0.28109171]
[1734912825141,0.00071266,94997.0,94996.0,0.28109171]
[1734912825353,0.00571266,94997.0,94996.0,0.28109171]
[1734912825719,0.00571266,94997.0,94996.0,0.12266871]
[1734912826077,0.00571266,94997.0,94996.0,1.09271102]
[1734912827192,0.0001716,95022.0,94996.0,1.09271102]
[1734912827193,0.0001716,95022.0,95010.0,0.460504]
[1734912827398,0.00033388,95011.0,95010.0,1.7397054]
[1734912827678,0.00033388,95011.0,95010.0,1.6575524]
[1734912828130,0.00033388,95011.0,95010.0,1.3905494]
[1734912828307,0.000171,95032.0,95026.0,0.40899931]
[1734912828433,0.000171,95038.0,95035.0,0.15]
[1734912828633,0.0001714,95057.0,95037.0,0.15]
[1734912828830,0.00016222,95054.0,95053.0,0.210408]
[1734912829032,0.00016222,95054.0,95053.0,0.6577164]
[1734912829536,0.00016222,95054.0,95053.0,0.5221244]
[1734912829737,0.00016222,95054.0,95052.0,0.02061993]
[1734912829884,0.00016222,95054.0,95053.0,0.210408]
[1734912830889,0.00016222,95054.0,95048.0,0.15]
[1734912831093,0.00016222,95054.0,95035.0,0.210447]
[1734912831298,0.0798,95053.0,95035.0,0.210447]
[1734912831498,0.0798,95053.0,95041.0,0.210435]
[1734912831706,0.0798,95053.0,95035.0,0.420894]
[1734912831916,0.0798,95053.0,95041.0,0.210435]
[1734912832121,0.0798,95053.0,95039.0,0.01446003]
[1734912832326,0.0798,95053.0,95041.0,0.001]
[1734912832811,0.0798,95053.0,95040.0,0.001]
[1734912833019,0.0798,95053.0,95041.0,0.210435]
[1734912833707,0.210411,95052.0,95040.0,0.001]
[1734912834040,0.0798,95053.0,95041.0,0.210435]
[1734912834447,0.00016222,95054.0,95035.0,0.22495397]
[1734912834448,0.00016222,95054.0,95047.0,0.21042]
[1734912835080,0.00016222,95054.0,95047.0,0.3117284]
[1734912835456,0.00016222,95054.0,95052.0,0.02124328]
[1734912835661,0.00016222,95054.0,95053.0,0.4773904]
[1734912835975,0.00016222,95054.0,95053.0,0.3518794]
[1734912836547,0.00016222,95054.0,95053.0,0.3117164]
[1734912837418,0.00016222,95054.0,95053.0,0.5383964]
[1734912837870,0.00216222,95054.0,95053.0,0.5383964]
[1734912838065,0.00016222,95054.0,95053.0,0.5383964]
[1734912838462,0.00216222,95054.0,95053.0,0.4897054]
[1734912838664,0.00016222,95054.0,95053.0,0.6397054]
[1734912838869,15.00216222,95054.0,95053.0,0.7397054]
[1734912839243,15.00216222,95054.0,95053.0,0.4617164]
[1734912839799,15.00216222,95054.0,95053.0,0.5677864]
[1734912840011,15.00216222,95054.0,95053.0,0.4617164]
[1734912840216,15.00216222,95054.0,95052.0,0.02124328]
[1734912840217,15.00216222,95054.0,95050.0,0.40899931]
[1734912840343,15.00216222,95054.0,95051.0,0.210413]
[1734912840545,15.00216222,95054.0,95050.0,0.40899931]
[1734912840765,15.00016222,95054.0,95050.0,0.40899931]
[1734912841219,15.00216222,95054.0,95053.0,0.001]
[1734912841370,15.00216222,95054.0,95050.0,0.40899931]
[1734912841575,0.0777,95053.0,95050.0,0.40899931]
[1734912841835,0.0777,95053.0,95050.0,0.41799931]
[1734912842276,0.0777,95053.0,95050.0,0.40899931]
[1734912842496,0.0777,95053.0,95050.0,0.41699931]
[1734912842910,15.00016222,95054.0,95050.0,0.41699931]
[1734912843058,15.00016222,95054.0,95051.0,0.210413]
[1734912843236,15.00016222,95054.0,95050.0,0.41699931]
[1734912843909,15.00016222,95054.0,95050.0,0.008]
[1734912844108,0.334308,95053.0,95050.0,0.016]
[1734912844549,0.210425,95046.0,95032.0,0.02094666]
[1734912844734,0.210425,95046.0,95032.0,0.1013084]
[1734912844878,0.210425,95046.0,95026.0,0.210468]
[1734912844879,0.42085,95046.0,95026.0,0.210468]
[1734912845094,0.42085,95046.0,95028.0,0.210464]
[1734912845291,0.210425,95046.0,95031.0,0.15]
[1734912846036,0.212425,95046.0,95031.0,0.15]
[1734912847176,0.42285,95046.0,95030.0,0.19136926]
[1734912847356,0.0821,95029.0,95026.0,0.01442418]
[1734912847532,0.210464,95028.0,95012.0,0.02086327]
[1734912847695,0.0821,95029.0,95012.0,0.1013084]
[1734912847896,0.0821,95029.0,95010.0,0.19136926]
[1734912848101,0.0821,95029.0,95021.0,0.210478]
[1734912848747,0.0821,95029.0,95019.0,0.19136926]
[1734912849216,0.210464,95028.0,95013.0,0.15]
[1734912849460,0.210464,95028.0,95013.0,0.2513084]
[1734912849633,0.0821,95029.0,95018.0,0.19136926]
[1734912850039,0.0821,95029.0,95021.0,0.000171]
[1734912850783,0.0831,95029.0,95021.0,0.009171]
[1734912851209,0.0821,95029.0,95021.0,0.000171]
[1734912851531,0.0831,95029.0,95021.0,0.009171]
[1734912852057,0.0841,95029.0,95021.0,0.018171]
[1734912852672,0.0841,95029.0,95021.0,0.228649]
[1734912853278,0.0841,95029.0,95021.0,0.018171]
[1734912853909,0.0821,95029.0,95021.0,0.21065]
[1734912855172,0.0821,95029.0,95021.0,0.000171]
[1734912855869,0.0821,95029.0,95021.0,0.008171]
[1734912855870,0.0831,95029.0,95021.0,0.008171]
[1734912856668,0.001,95029.0,95026.0,0.210466]
[1734912856898,0.001,95029.0,95028.0,0.210464]
[1734912857049,0.001,95029.0,95028.0,0.5192584]
[1734912857209,0.001,95029.0,95028.0,0.4868954]
[1734912857424,0.0757,95050.0,95036.0,0.210446]
[1734912857629,0.286117,95050.0,95031.0,0.210457]
[1734912858234,0.0757,95050.0,95040.0,0.12768418]
[1734912858492,0.0757,95050.0,95036.0,0.210444]
[1734912859131,0.0757,95050.0,95046.0,0.210422]
[1734912859345,0.0757,95050.0,95041.0,0.210435]
[1734912859544,0.0757,95050.0,95040.0,0.12768418]
[1734912859724,0.0757,95050.0,95038.0,0.210441]
[1734912860154,0.0757,95050.0,95031.0,0.002]
[1734912860378,0.00131518,95049.0,95031.0,0.002]
[1734912860712,0.00131518,95049.0,95031.0,0.212457]
[1734912860713,0.210419,95048.0,95031.0,0.212457]
[1734912860917,0.00131518,95047.0,95031.0,0.212457]
[1734912861122,0.210424,95046.0,95031.0,0.212457]
[1734912861326,0.0757,95050.0,95037.0,0.210443]
[1734912861907,0.0757,95050.0,95042.0,0.210431]
[1734912862565,0.0757,95050.0,95042.0,0.420864]
[1734912863179,0.0757,95050.0,95042.0,0.210431]
[1734912863562,0.0757,95050.0,95038.0,0.210612]
[1734912864574,0.0767,95050.0,95038.0,0.210612]
[1734912864774,0.0757,95050.0,95038.0,0.210612]
[1734912865317,0.0757,95050.0,95038.0,0.218612]
[1734912865535,0.0757,95050.0,95043.0,0.210429]
[1734912865659,0.0757,95050.0,95043.0,0.420859]
[1734912865861,0.0757,95050.0,95048.0,0.210418]
[1734912866308,15.00024772,95054.0,95048.0,0.210418]
[1734912866507,15.00024772,95054.0,95049.0,0.177108]
[1734912866739,15.00024772,95054.0,95050.0,0.210415]
[1734912866880,15.00024772,95054.0,95052.0,0.210411]
[1734912867082,15.00024772,95054.0,95053.0,0.3069394]
[1734912867316,15.00024772,95054.0,95053.0,0.2884084]
[1734912867761,15.00024772,95054.0,95053.0,0.8991654]
[1734912868748,14.9429413,95054.0,95053.0,1.1491654]
[1734912869144,14.9449413,95054.0,95053.0,0.6263394]
[1734912869987,14.9429413,95054.0,95053.0,0.6263394]
[1734912871403,14.9449413,95054.0,95053.0,0.6273394]
[1734912871716,14.9449413,95054.0,95053.0,0.6263394]
[1734912871856,14.9429413,95054.0,95053.0,0.6263394]
[1734912872060,14.9429413,95054.0,95053.0,0.6273394]
[1734912872061,14.9449413,95054.0,95053.0,0.6273394]
[1734912873828,14.81386116,95054.0,95053.0,0.6273394]
[1734912874251,14.81386116,95054.0,95053.0,0.3523084]
[1734912874449,14.81386116,95054.0,95053.0,2.68589571]
[1734912874692,14.81186116,95054.0,95053.0,2.35976871]
[1734912874937,14.81386116,95054.0,95053.0,1.03029471]
[1734912875116,14.81386116,95054.0,95053.0,0.1023084]
[1734912875288,14.81386116,95054.0,95053.0,0.001]
[1734912875827,14.81186116,95054.0,95052.0,0.01487718]
[1734912876032,14.81386116,95054.0,95053.0,0.001]
[1734912876433,14.81186116,95054.0,95049.0,0.09405477]
[1734912877029,14.81186116,95054.0,95042.0,0.210432]
[1734912877182,14.81186116,95054.0,95049.0,0.01318687]
[1734912877398,14.81186116,95054.0,95044.0,0.210428]
[1734912877597,14.81286116,95054.0,95053.0,0.009]
[1734912878022,14.81186116,95054.0,95044.0,0.210428]
[1734912878269,14.81186116,95054.0,95043.0,0.01314472]
[1734912878615,0.00131501,95053.0,95049.0,0.008]
[1734912878819,14.81186116,95054.0,95040.0,0.19151714]
[1734912879226,14.81286116,95054.0,95044.0,0.009]
[1734912879497,14.81286116,95054.0,95041.0,0.210435]
[1734912881000,0.211408,95053.0,95049.0,0.009]
[1734912881259,0.210432,95043.0,95038.0,0.01333616]
[1734912881722,0.0809,95042.0,95041.0,0.008]
[1734912881963,0.0809,95042.0,95038.0,0.01333616]
[1734912882893,0.210435,95041.0,95038.0,0.02233616]
[1734912883137,0.258435,95041.0,95038.0,0.02233616]
[1734912883570,0.210439,95039.0,95038.0,0.009171]
[1734912883783,0.210442,95038.0,95015.0,0.11747892]
[1734912883916,0.210459,95031.0,95015.0,0.11747892]
[1734912884115,0.210459,95031.0,95020.0,0.1276541]
[1734912884537,0.0799,95039.0,95021.0,0.4844854]
[1734912884740,0.0799,95039.0,95030.0,0.210459]
[1734912885123,0.0799,95039.0,95038.0,0.009]
[1734912885499,0.0799,95039.0,95030.0,0.210459]
[1734912885804,0.0809,95039.0,95030.0,0.210459]
[1734912886187,0.0799,95039.0,95030.0,0.210459]
[1734912886378,0.0809,95039.0,95038.0,0.009]
[1734912886584,0.0809,95039.0,95038.0,0.0091708]
[1734912886780,0.0799,95039.0,95038.0,0.0001708]
[1734912886912,0.0809,95039.0,95038.0,0.0001708]
[1734912887764,0.001,95039.0,95038.0,0.0001708]
[1734912888319,0.210422,95047.0,95038.0,0.0001708]
[1734912888776,0.001,95039.0,95037.0,0.0088249]
[1734912888966,0.001,95039.0,95031.0,0.02112239]
[1734912889687,0.0782,95048.0,95030.0,0.01335568]
[1734912889688,0.210435,95041.0,95030.0,0.01335568]
[1734912889914,0.210435,95041.0,95038.0,0.005]
[1734912890150,0.210435,95041.0,95027.0,0.02140678]
[1734912890554,0.210449,95035.0,95017.0,0.40899931]
[1734912890709,0.0812,95034.0,95022.0,0.01338203]
[1734912890937,0.0812,95034.0,95021.0,0.17137097]
[1734912891137,0.210453,95033.0,95021.0,0.17137097]
[1734912891321,0.210453,95033.0,95031.0,0.001]
[1734912891722,0.210453,95033.0,95021.0,0.15]
[1734912891919,0.210453,95033.0,95020.0,0.1276541]
[1734912892140,0.0812,95034.0,95022.0,0.001]
[1734912892141,0.0822,95034.0,95022.0,0.001]
[1734912892350,0.0822,95034.0,95024.0,0.210473]
[1734912892548,0.001,95034.0,95025.0,0.9525774]
[1734912892797,0.001,95034.0,95026.0,0.866234]
[1734912892976,0.0805,95045.0,95026.0,0.866234]
[1734912892977,0.0805,95045.0,95027.0,0.1013084]
[1734912893176,0.001,95033.0,95027.0,0.1013084]
[1734912893370,0.001,95033.0,95020.0,0.1276541]
[1734912893715,0.001,95033.0,95023.0,0.210473]
[1734912893858,0.001,95033.0,95023.0,0.3117814]
[1734912894054,0.001,95033.0,95029.0,0.210461]
[1734912894280,0.001,95033.0,95030.0,0.1013084]
[1734912895024,0.0805,95045.0,95031.0,0.420914]
[1734912895242,0.001,95034.0,95031.0,0.5222224]
[1734912895446,0.0805,95045.0,95031.0,0.5222224]
[1734912895822,0.001,95033.0,95031.0,0.5222224]
[1734912895978,0.0805,95045.0,95031.0,0.5222224]
[1734912896453,0.001,95034.0,95031.0,0.5232224]
[1734912896635,0.0805,95045.0,95031.0,0.5222224]
[1734912897135,0.0805,95045.0,95036.0,0.210444]
[1734912897464,0.0805,95045.0,95036.0,0.42089]
[1734912898430,0.0805,95045.0,95031.0,0.11444262]
[1734912898617,0.001,95033.0,95032.0,0.210453]
[1734912898906,0.001,95033.0,95031.0,0.11544262]
[1734912898907,0.001,95033.0,95031.0,0.01313422]
[1734912899211,0.001,95033.0,95028.0,0.02141926]
[1734912899501,0.0805,95045.0,95028.0,0.02141926]
[1734912899705,0.0805,95045.0,95025.0,0.40899931]
[1734912899706,0.00131516,95044.0,95025.0,0.40899931]
[1734912899910,0.001,95033.0,95032.0,0.001]
[1734912901126,0.001,95033.0,95025.0,0.42245635]
[1734912901337,0.00131516,95044.0,95025.0,0.42245635]